bitfinex/quotes_ETHUSD_20240607
["timestamp","ask_amount","ask_price","bid_price","bid_amount"]
[1717764278897,2.63471,3795.5,3793.6,2.4149]
[1717764279245,3.0,3795.4,3793.2,2.63624]
[1717764279444,2.6353,3794.7,3793.5,2.63602]
[1717764280016,2.63496,3795.2,3793.9,2.63579]
[1717764280350,3.38496,3795.2,3793.9,2.63579]
[1717764280656,2.63496,3795.2,3793.9,2.63579]
[1717764281730,2.63496,3795.2,3794.2,2.63556]
[1717764282741,2.63466,3795.6,3794.5,2.63535]
[1717764283908,2.63487,3795.3,3794.3,2.2696]
[1717764284107,2.63487,3795.3,3794.1,2.63563]
[1717764284108,2.6351,3795.0,3794.1,2.63563]
[1717764284324,2.6351,3795.0,3793.8,0.54885657]
[1717764284506,2.6351,3795.0,3794.0,0.54885657]
[1717764284857,2.6351,3795.0,3794.0,2.63572]
[1717764285012,2.63418,3796.3,3794.0,3.18457657]
[1717764285219,2.63481,3795.4,3794.3,2.63548]
[1717764285756,2.63481,3795.4,3794.6,0.54885657]
[1717764286064,2.63499,3795.1,3794.4,0.54885657]
[1717764286351,2.63499,3795.1,3794.3,0.54885657]
[1717764287144,2.63499,3795.1,3794.4,0.54885657]
[1717764287448,2.63499,3795.1,3794.5,0.54885657]
[1717764287960,2.63499,3795.1,3794.6,0.54885657]
[1717764288261,2.63519,3794.8,3794.7,0.54885657]
[1717764288444,2.63519,3794.8,3794.6,0.79067381]
[1717764288815,2.63519,3794.8,3794.7,0.54808957]
[1717764289244,2.63519,3794.8,3794.7,0.5480878]
[1717764289957,2.63519,3794.8,3794.5,0.5480878]
[1717764290557,2.63532,3794.6,3794.4,0.5480878]
[1717764291067,2.63508,3795.0,3794.2,0.5480878]
[1717764291232,2.63524,3794.8,3794.3,0.5480878]
[1717764291435,3.0,3795.6,3794.2,0.5480878]
[1717764291750,3.0,3795.6,3794.4,0.5480878]
[1717764291751,2.63514,3794.9,3794.4,0.5480878]
[1717764292150,2.63514,3794.9,3794.3,0.5480878]
[1717764292452,2.63514,3794.9,3794.2,0.5480878]
[1717764292654,2.63514,3794.9,3794.3,0.5480878]
[1717764292953,2.63514,3794.9,3794.2,0.5480878]
[1717764293457,2.63514,3794.9,3794.1,4.91141]
[1717764293458,2.63514,3794.9,3794.1,5.4594978]
[1717764293799,2.63467,3795.6,3794.8,2.63513]
[1717764294263,2.63496,3795.2,3794.5,0.5480878]
[1717764294476,2.63496,3795.2,3794.3,0.5480878]
[1717764294778,2.63496,3795.2,3794.4,2.63544]
[1717764294920,2.63471,3795.5,3794.6,2.63526]
[1717764296349,2.63496,3795.2,3794.2,3.1836378]
[1717764296836,2.63511,3795.0,3794.2,2.63555]
[1717764297534,2.63511,3795.0,3794.1,2.2758]
[1717764297731,2.63511,3795.0,3794.1,4.91142]
[1717764298653,2.63479,3795.4,3794.1,2.2758]
[1717764298860,2.6355,3794.4,3793.5,2.63605]
[1717764299161,2.63498,3795.1,3793.2,2.63626]
[1717764299162,2.63565,3794.2,3793.2,2.63626]
[1717764300156,2.63565,3794.2,3793.4,2.63611]
[1717764300470,2.63498,3795.1,3792.8,2.5493]
[1717764300471,2.63503,3795.1,3793.0,2.63638]
[1717764300754,2.63579,3794.0,3793.1,2.63633]
[1717764301158,2.63525,3794.7,3792.8,2.2857]
[1717764301159,2.63539,3794.6,3792.8,2.2857]
[1717764301319,2.63615,3793.5,3792.3,2.6369]
[1717764301521,2.63633,3793.2,3792.3,2.6369]
[1717764301766,2.63565,3794.2,3792.1,2.2879]
[1717764301767,2.63654,3792.9,3792.1,2.2879]
[1717764302127,2.63675,3792.6,3792.1,2.2879]
[1717764302764,2.63645,3793.0,3792.1,2.2879]
[1717764303293,2.63645,3793.0,3792.1,4.92491]
[1717764303563,2.63645,3793.0,3792.1,2.2879]
[1717764303928,2.536,3793.7,3792.1,2.2879]
[1717764303929,2.63668,3792.7,3792.1,2.2879]
[1717764304127,2.63688,3792.4,3791.4,2.3392]
[1717764304446,2.63619,3793.4,3790.9,0.2636]
[1717764304447,2.63713,3792.0,3790.9,0.008]
[1717764304649,2.536,3792.7,3790.8,2.6379]
[1717764304857,3.0,3792.6,3790.8,2.6379]
[1717764305059,2.63739,3791.7,3790.7,2.324]
[1717764305228,2.63775,3791.2,3790.5,1.055028]
[1717764305426,2.63739,3791.7,3790.5,1.055028]
[1717764305874,2.63699,3792.2,3790.9,2.63784]
[1717764306026,2.6373,3791.8,3790.1,2.3547]
[1717764306428,2.6373,3791.8,3790.7,2.63803]
[1717764306639,3.0,3792.6,3791.3,2.63757]
[1717764306640,2.63673,3792.6,3791.3,2.63757]
[1717764306882,2.63596,3793.7,3791.6,2.63736]
[1717764306883,2.63643,3793.1,3791.6,2.63736]
[1717764307172,2.63666,3792.7,3791.6,2.63736]
[1717764307736,2.63639,3793.1,3791.9,2.63715]
[1717764308048,2.63583,3793.9,3791.5,2.63744]
[1717764308256,0.75,3793.6,3791.6,0.87460994]
[1717764308473,2.63583,3793.9,3792.8,2.63652]
[1717764308945,2.63583,3793.9,3792.8,5.06032]
[1717764309286,2.63557,3794.3,3793.4,2.63612]
[1717764309583,5.17089,3795.3,3793.1,2.63631]
[1717764309785,5.17089,3795.3,3792.8,2.4238]
[1717764309786,2.63574,3794.0,3792.8,2.4238]
[1717764309988,2.63574,3794.0,3792.9,2.63649]
[1717764310284,2.63574,3794.0,3793.2,2.63626]
[1717764310487,2.63549,3794.4,3793.5,2.63606]
[1717764310655,2.6359,3793.8,3792.8,2.4238]
[1717764310858,2.6359,3793.8,3791.4,0.79867381]
[1717764310859,0.75,3793.2,3791.0,0.5560878]
[1717764311064,2.63718,3792.0,3790.4,0.008]
[1717764311387,2.63718,3792.0,3790.4,2.63818]
[1717764311794,2.63718,3792.0,3790.8,2.6379]
[1717764312349,2.63718,3792.0,3790.3,2.63828]
[1717764313565,2.63726,3791.8,3790.0,0.008]
[1717764313871,5.63726,3791.8,3789.9,0.008]
[1717764314954,5.63726,3791.8,3790.1,2.63842]
[1717764315494,5.63726,3791.8,3789.9,0.008]
[1717764315670,2.63789,3791.0,3789.9,0.008]
[1717764315856,2.63789,3791.0,3789.7,2.4862]
[1717764316055,2.63811,3790.6,3789.7,2.4862]
[1717764317874,2.63842,3790.2,3789.2,2.63907]
[1717764318090,2.63766,3791.3,3789.0,2.4009]
[1717764318091,2.63864,3789.9,3789.0,2.4009]
[1717764318596,2.63833,3790.3,3789.0,5.04006]
[1717764318818,2.63805,3790.7,3789.0,2.4009]
[1717764319109,10.69529287,3792.2,3790.2,2.63834]
[1717764319110,2.6375,3791.5,3790.2,2.63834]
[1717764319315,2.6375,3791.5,3790.4,4.91662]
[1717764319470,2.63722,3791.9,3790.7,2.63799]
[1717764319792,0.20846432,3792.7,3790.4,2.2784]
[1717764319793,2.63694,3792.3,3790.4,2.2784]
[1717764319992,0.75,3792.5,3791.3,2.63758]
[1717764320153,2.63689,3792.4,3791.3,2.901338]
[1717764320589,2.63751,3791.5,3790.4,4.91662]
[1717764320814,3.22,3792.0,3789.6,2.2956]
[1717764321112,2.63793,3790.9,3789.6,2.2956]
[1717764321287,2.63793,3790.9,3788.6,0.79067381]
[1717764321288,2.63802,3790.8,3788.9,2.3036]
[1717764321608,2.63802,3790.8,3787.9,0.95480294]
[1717764321609,3.22,3790.6,3788.7,0.008]
[1717764321927,2.63869,3789.8,3788.6,2.63949]
[1717764322109,2.63869,3789.8,3788.2,2.3661]
[1717764322110,0.75,3790.1,3788.2,2.3741]
[1717764322412,2.4908,3789.8,3788.2,0.008]
[1717764322579,5.4908,3789.8,3787.9,0.008]
[1717764322985,0.75,3789.2,3787.9,0.008]
[1717764323180,0.75,3789.2,3787.7,2.64812]
[1717764323397,2.63933,3788.9,3787.7,2.64812]
[1717764323571,2.63933,3788.9,3787.7,2.64012]
[1717764326087,2.63933,3788.9,3788.0,2.63987]
[1717764326620,2.63933,3788.9,3787.7,0.008]
[1717764326791,2.63933,3788.9,3787.6,5.01428]
[1717764326993,2.63933,3788.9,3787.9,2.63994]
[1717764328009,2.63933,3788.9,3787.7,0.008]
[1717764328010,2.6395,3788.6,3787.7,0.008]
[1717764328326,2.6395,3788.6,3787.5,2.64821]
[1717764329096,2.4908,3789.8,3787.5,0.008]
[1717764329299,2.63875,3789.7,3788.6,2.63945]
[1717764329499,0.75,3789.2,3788.2,2.64773]
[1717764329849,2.3873,3790.5,3788.2,2.64773]
[1717764329850,2.63832,3790.3,3788.2,2.63973]
[1717764329982,2.63891,3789.5,3788.4,2.63961]
[1717764330491,2.63891,3789.5,3788.1,0.008]
[1717764330492,2.63891,3789.5,3788.7,2.63937]
[1717764330822,2.63863,3789.9,3788.7,2.63937]
[1717764331524,2.63835,3790.3,3788.4,2.63963]
[1717764331689,2.63835,3790.3,3789.2,2.63901]
[1717764332027,2.63857,3790.0,3788.8,2.6393]
[1717764332206,2.63895,3789.4,3788.4,2.64759]
[1717764332415,2.63895,3789.4,3788.4,2.63959]
[1717764334038,2.63871,3789.8,3788.4,2.63959]
[1717764334736,2.63887,3789.5,3788.4,2.63959]
[1717764334937,2.63903,3789.3,3788.4,2.63959]
[1717764335538,2.63903,3789.3,3788.0,2.64785]
[1717764335835,2.63903,3789.3,3788.3,2.6397]
[1717764336008,2.63879,3789.7,3788.3,0.26397]
[1717764336205,2.63879,3789.7,3788.1,0.008]
[1717764336435,3.38879,3789.7,3787.9,0.008]
[1717764336746,2.63894,3789.4,3788.5,2.63952]
[1717764338140,3.38792,3790.9,3788.1,0.008]
[1717764338141,2.4518,3790.6,3788.1,0.008]
[1717764338347,2.63873,3789.7,3788.7,2.63935]
[1717764338547,2.63897,3789.4,3788.4,2.63962]
[1717764338704,2.63872,3789.8,3788.7,2.6394]
[1717764338900,2.63872,3789.8,3789.0,2.63921]
[1717764339636,2.63887,3789.5,3788.6,2.63942]
[1717764339946,2.63908,3789.2,3788.3,2.63215814]
[1717764340312,2.63908,3789.2,3788.0,2.6399]
[1717764341351,0.75,3789.2,3787.7,2.64011]
[1717764341559,2.63962,3788.5,3787.7,2.64011]
[1717764341857,3.0,3789.1,3787.3,2.64034]
[1717764342022,0.75,3789.2,3787.3,2.64034]
[1717764342371,3.0,3789.0,3787.3,2.64034]
[1717764342904,0.75,3789.2,3787.3,2.64034]
[1717764343217,2.63974,3788.3,3787.3,2.64034]
[1717764343636,2.63993,3788.0,3787.3,2.64034]
[1717764344104,2.63993,3788.0,3787.2,2.64046]
[1717764346306,2.63984,3788.1,3787.1,2.64049]
[1717764346960,2.63984,3788.1,3787.3,2.64034]
[1717764347134,2.63955,3788.6,3787.6,2.64016]
[1717764347543,2.63969,3788.4,3787.6,2.64016]
[1717764347933,2.63987,3788.1,3787.1,2.64047]
[1717764348121,2.63987,3788.1,3787.3,2.64034]
[1717764348317,2.545,3788.7,3787.5,2.64019]
[1717764348548,2.63958,3788.5,3787.5,2.64019]
[1717764349911,2.63979,3788.2,3787.5,2.64019]
[1717764350116,2.63979,3788.2,3787.2,2.64045]
[1717764350450,3.295,3788.7,3786.8,0.5480878]
[1717764350451,2.64011,3787.8,3786.8,2.64068]
[1717764350964,2.63984,3788.2,3787.0,2.64056]
[1717764351338,2.63997,3788.0,3787.0,2.64056]
[1717764352032,2.545,3788.7,3787.0,2.64056]
[1717764352033,2.6401,3787.8,3787.0,2.64056]
[1717764352376,2.64026,3787.6,3786.8,2.64074]
[1717764353363,0.57077497,3788.4,3787.4,2.64028]
[1717764353520,0.75,3788.7,3787.1,2.64054]
[1717764353735,2.63991,3788.1,3787.3,2.64035]
[1717764354490,2.64002,3787.9,3787.2,2.64041]
[1717764354970,2.63978,3788.2,3787.4,2.64029]
[1717764355122,3.11576806,3788.7,3787.1,2.64053]
[1717764355123,2.63996,3788.0,3787.1,2.64053]
[1717764355951,2.63996,3788.0,3787.3,2.64035]
[1717764356263,5.318,3788.7,3786.7,2.2549]
[1717764356425,2.63966,3788.4,3787.5,2.64024]
[1717764356759,2.63966,3788.4,3786.8,0.25185]
[1717764356760,2.63982,3788.2,3787.2,2.64043]
[1717764356957,2.545,3788.7,3786.8,0.25185]
[1717764356958,2.63959,3788.5,3786.8,0.25185]
[1717764357259,2.63959,3788.5,3787.8,2.64]
[1717764358778,2.63959,3788.5,3787.5,2.64024]
[1717764358948,2.63974,3788.3,3787.5,2.64024]
[1717764359561,2.63952,3788.6,3787.7,2.64007]
[1717764360346,0.57071309,3789.0,3787.4,2.6403]
[1717764360546,2.63961,3788.5,3787.7,2.6401]
[1717764360970,2.63904,3789.3,3787.9,2.63992]
[1717764360971,2.63934,3788.9,3787.9,2.63992]
[1717764361276,2.63934,3788.9,3787.1,2.64049]
[1717764361498,2.63907,3789.3,3787.4,0.5480878]
[1717764361659,2.63907,3789.3,3787.5,2.8635]
[1717764362051,2.63907,3789.3,3787.7,2.64012]
[1717764362248,2.63881,3789.6,3787.8,0.2636]
[1717764362556,2.63893,3789.5,3788.8,2.6393]
[1717764362769,2.63855,3790.0,3787.9,0.5480878]
[1717764363097,2.63909,3789.2,3788.2,2.63972]
[1717764363382,2.63909,3789.2,3787.7,0.5480878]
[1717764363383,2.63886,3789.6,3787.5,2.8615878]
[1717764363677,0.5705774,3789.8,3788.2,2.63975]
[1717764363678,2.63912,3789.2,3788.2,2.63975]
[1717764363852,3.11561077,3790.2,3788.4,2.63956]
[1717764364047,3.11561077,3790.2,3787.7,2.64006]
[1717764364048,2.63889,3789.5,3787.6,3.65561516]
[1717764364250,2.63889,3789.5,3787.8,2.63998]
[1717764364574,0.55,3790.1,3787.6,3.65561516]
[1717764364575,0.75,3789.8,3787.6,3.65561516]
[1717764364768,2.545,3789.7,3787.6,0.65561516]
[1717764364975,2.63962,3788.5,3787.6,2.64018]
[1717764365890,2.3068,3789.2,3787.2,2.64041]
[1717764366049,0.75,3788.8,3787.1,2.64053]
[1717764366397,2.63929,3788.9,3787.1,2.64053]
[1717764366398,2.63929,3788.9,3787.7,2.64005]
[1717764366688,2.63929,3788.9,3787.9,2.63991]
[1717764367200,4.92597,3789.8,3788.5,2.63951]
[1717764367201,3.2094025,3789.6,3788.5,2.63951]
[1717764367494,2.2873,3789.8,3788.5,2.63951]
[1717764367495,2.63901,3789.3,3788.5,2.63951]
[1717764367803,2.63901,3789.3,3788.1,2.63978]
[1717764368593,2.63901,3789.3,3788.4,2.63961]
[1717764369262,2.63879,3789.7,3788.7,2.63942]
[1717764369803,2.63893,3789.5,3788.7,2.63942]
[1717764370884,2.63866,3789.8,3788.7,2.63942]
[1717764371086,3.9590525,3790.1,3789.0,2.6392]
[1717764371281,2.63845,3790.1,3789.0,2.6392]
[1717764371484,2.63865,3789.9,3789.0,2.6392]
[1717764371786,2.63879,3789.7,3788.6,2.63943]
[1717764372177,2.63879,3789.7,3788.8,2.63929]
[1717764372379,3.2089225,3790.3,3789.4,2.63888]
[1717764372578,2.63845,3790.1,3789.4,2.63888]
[1717764372952,2.63823,3790.5,3789.6,2.63875]
[1717764373485,2.63796,3790.8,3789.8,2.63864]
[1717764373661,3.38796,3790.8,3789.8,2.63864]
[1717764373861,0.41332145,3791.0,3790.1,2.63844]
[1717764374064,2.63734,3791.7,3790.1,2.63844]
[1717764374278,0.75,3791.3,3789.7,2.63866]
[1717764374481,2.545,3791.1,3789.3,2.63897]
[1717764374678,2.63854,3790.0,3789.3,2.63897]
[1717764374878,2.63854,3790.0,3788.9,2.63922]
[1717764375064,2.545,3790.6,3788.7,2.4784]
[1717764375065,2.63893,3789.5,3788.7,2.4784]
[1717764375279,2.63893,3789.5,3788.6,2.63948]
[1717764375668,2.63893,3789.5,3788.3,2.6397]
[1717764375974,2.63907,3789.3,3788.3,2.6397]
[1717764376470,2.6392,3789.1,3788.1,2.4784]
[1717764376794,2.6392,3789.1,3788.2,2.63977]
[1717764377571,2.6389,3789.5,3788.5,2.63956]
[1717764377763,2.6389,3789.5,3788.7,2.63936]
[1717764378209,2.63866,3789.8,3788.7,2.63936]
[1717764379183,2.63845,3790.1,3789.0,2.6392]
[1717764379373,2.63852,3790.0,3788.4,2.63957]
[1717764380006,2.4846,3790.6,3788.4,2.63957]
[1717764380007,2.63831,3790.3,3789.3,2.639]
[1717764380318,2.4846,3790.6,3789.3,2.639]
[1717764380319,2.63802,3790.8,3789.3,2.4256]
[1717764380626,2.63802,3790.8,3789.3,2.66816]
[1717764381219,2.63802,3790.8,3789.8,2.63863]
[1717764382084,2.63775,3791.2,3790.3,2.6383]
[1717764383032,2.63767,3791.3,3790.4,2.63818]
[1717764383233,2.3121,3791.8,3790.1,2.63844]
[1717764383415,2.63809,3790.7,3789.7,2.63869]
[1717764383601,2.63848,3790.1,3789.1,2.63914]
[1717764384300,2.63865,3789.9,3789.1,2.63914]
[1717764384633,5.12341,3790.6,3788.7,2.63938]
[1717764384794,2.63879,3789.7,3788.7,2.63938]
[1717764384992,6.9382,3790.5,3788.4,2.4952]
[1717764384993,2.63893,3789.5,3788.4,2.4952]
[1717764385223,2.63909,3789.2,3788.2,2.63971]
[1717764386604,2.63909,3789.2,3787.8,4.99773]
[1717764387328,3.34362729,3789.9,3787.8,4.99773]
[1717764387629,2.63933,3788.9,3787.8,4.99773]
[1717764388643,2.63903,3789.3,3788.1,2.63979]
[1717764388812,2.63903,3789.3,3788.4,2.63959]
[1717764389610,2.63876,3789.7,3788.4,2.63959]
[1717764389826,2.63876,3789.7,3788.7,2.63938]
[1717764390204,2.63847,3790.1,3788.7,2.63938]
[1717764391044,2.63868,3789.8,3788.7,2.63938]
[1717764394365,2.63886,3789.6,3788.7,2.63938]
[1717764394571,3.0,3789.9,3788.3,2.63965]
[1717764394868,2.63921,3789.1,3788.3,2.63965]
[1717764395005,3.34353558,3789.9,3787.8,2.3577]
[1717764395351,3.34353558,3789.9,3788.0,2.6399]
[1717764395352,2.63938,3788.8,3788.0,2.6399]
[1717764395768,2.63915,3789.1,3788.3,2.63969]
[1717764396718,2.63915,3789.1,3788.0,2.6399]
[1717764397341,2.63948,3788.7,3787.8,2.3577]
[1717764397546,2.63919,3789.1,3787.7,2.64011]
[1717764398043,2.63929,3788.9,3787.7,2.64011]
[1717764398220,2.63929,3788.9,3787.2,2.3601]
[1717764398544,2.63926,3789.0,3788.1,2.63978]
[1717764399413,2.6389,3789.5,3787.2,2.3601]
[1717764399617,2.63916,3789.1,3787.3,0.53601]
[1717764399819,2.63916,3789.1,3787.5,2.64026]
[1717764400239,2.63916,3789.1,3788.3,2.63964]
[1717764400422,0.57065084,3790.1,3788.4,2.4347]
[1717764400665,0.75,3789.5,3788.4,2.4347]
[1717764400971,2.63878,3789.7,3788.6,2.63948]
[1717764401308,2.63878,3789.7,3788.4,2.4347]
[1717764401309,2.63894,3789.4,3788.4,2.4347]
[1717764401523,5.98192084,3790.4,3788.0,2.63989]
[1717764401524,2.6393,3788.9,3788.0,2.63989]
[1717764402911,2.63907,3789.3,3788.3,2.63967]
[1717764403130,3.38907,3789.3,3788.3,2.63967]
[1717764403347,2.63907,3789.3,3788.5,2.63951]
[1717764403930,3.0,3789.8,3788.0,2.63984]
[1717764403931,2.63883,3789.6,3788.0,2.63984]
[1717764404217,2.63879,3789.7,3788.8,2.63933]
[1717764405271,2.63879,3789.7,3789.0,2.63916]
[1717764405579,0.75,3790.0,3789.7,2.63869]
[1717764406073,2.63816,3790.6,3789.7,2.63869]
[1717764406618,2.6383,3790.4,3789.4,2.63893]
[1717764407645,2.63851,3790.1,3789.4,2.63893]
[1717764408162,2.63851,3790.1,3789.1,5.06332]
[1717764408676,2.63851,3790.1,3787.6,3.43080381]
[1717764408677,2.63891,3789.5,3788.5,5.08914]
[1717764409187,2.63905,3789.3,3788.5,5.08914]
[1717764409349,2.63905,3789.3,3788.5,2.63954]
[1717764409767,2.63919,3789.1,3788.2,2.63974]
[1717764410458,0.57058348,3790.1,3788.0,2.63987]
[1717764410682,2.63868,3789.8,3788.8,2.63935]
[1717764410881,2.63887,3789.5,3788.8,2.63935]
[1717764411273,2.63822,3790.5,3789.0,2.63918]
[1717764411274,2.63864,3789.9,3789.0,2.63918]
[1717764411774,2.63841,3790.2,3788.3,2.63969]
[1717764412000,3.38841,3790.2,3788.6,2.63943]
[1717764412200,0.57047092,3790.7,3789.2,2.63901]
[1717764412201,2.63858,3790.0,3789.2,2.63901]
[1717764412899,2.63871,3789.8,3788.9,2.63927]
[1717764413681,2.63871,3789.8,3789.1,2.6391]
[1717764414258,2.63871,3789.8,3788.8,2.63932]
[1717764414904,2.63871,3789.8,3789.0,2.63918]
[1717764415575,2.63832,3790.3,3789.7,2.63869]
[1717764415744,3.38832,3790.3,3789.1,2.3649]
[1717764415950,2.63832,3790.3,3789.4,2.63892]
[1717764416206,2.63832,3790.3,3789.6,2.63875]
[1717764418473,2.63832,3790.3,3789.3,2.63897]
[1717764419393,2.63832,3790.3,3789.5,2.63883]
[1717764419726,2.63849,3790.1,3789.2,2.63904]
[1717764419860,2.63862,3789.9,3789.2,2.63904]
[1717764420359,2.63841,3790.2,3789.2,2.63904]
[1717764420563,0.57047092,3790.9,3789.1,2.3649]
[1717764420769,3.0,3791.6,3789.1,2.3649]
[1717764420985,2.63829,3790.4,3789.6,2.63877]
[1717764421169,2.6375,3791.5,3789.8,2.6386]
[1717764421170,2.63805,3790.7,3789.8,2.6386]
[1717764421780,2.63785,3791.0,3790.0,2.63846]
[1717764421966,3.0,3791.2,3790.0,2.63846]
[1717764421967,2.63796,3790.8,3790.0,2.63846]
[1717764422510,2.63796,3790.8,3789.3,2.63896]
[1717764422511,2.545,3791.7,3789.3,2.63896]
[1717764422692,2.63776,3791.1,3790.2,2.63833]
[1717764423236,2.63794,3790.9,3790.2,2.63833]
[1717764423364,2.63743,3791.6,3789.9,2.63855]
[1717764423365,2.63807,3790.7,3789.9,2.63855]
[1717764423564,2.63755,3791.4,3789.1,2.3649]
[1717764423810,2.63841,3790.2,3789.2,2.63901]
[1717764424018,2.63797,3790.8,3789.2,2.63901]
[1717764424019,2.3883,3790.8,3789.2,2.63901]
[1717764424237,0.75,3790.5,3789.2,2.63901]
[1717764424531,2.63871,3789.8,3789.1,2.3649]
[1717764424663,3.0,3790.6,3788.4,2.4103]
[1717764424864,2.63897,3789.4,3788.6,2.63946]
[1717764426707,2.63915,3789.1,3788.4,2.4103]
[1717764426909,2.63934,3788.9,3788.2,2.6397]
[1717764427119,2.63934,3788.9,3787.9,2.63996]
[1717764428229,0.57066142,3789.6,3787.9,2.63996]
[1717764428230,0.57066142,3789.6,3788.8,2.63934]
[1717764428519,2.6385,3790.1,3788.1,2.90342]
[1717764428669,2.6385,3790.1,3788.4,2.4378]
[1717764428870,7.43,3790.5,3788.5,0.84878]
[1717764429084,2.63818,3790.5,3789.3,2.63899]
[1717764429281,2.63818,3790.5,3789.6,2.63879]
[1717764429521,2.63795,3790.9,3789.6,2.63879]
[1717764429702,2.63795,3790.9,3789.7,0.498699]
[1717764430005,2.545,3791.5,3789.5,2.3482]
[1717764430006,2.63813,3790.6,3789.5,2.3482]
[1717764430211,2.63763,3791.3,3789.2,2.63903]
[1717764430212,2.63833,3790.3,3789.2,2.63903]
[1717764431508,2.53833,3790.3,3789.2,2.63903]
[1717764431902,2.63806,3790.7,3789.9,2.63857]
[1717764432115,2.63806,3790.7,3789.5,2.63882]
[1717764432425,2.63806,3790.7,3789.7,2.63866]
[1717764432774,3.0,3791.2,3790.0,2.63847]
[1717764432775,2.63772,3791.2,3790.0,2.63847]
[1717764432974,0.75,3791.1,3790.0,2.63847]
[1717764433215,2.63772,3791.2,3790.0,2.63847]
[1717764433420,2.63786,3791.0,3790.0,2.63847]
[1717764433709,2.63756,3791.4,3790.3,2.63828]
[1717764433910,3.38756,3791.4,3790.3,2.63828]
[1717764434210,3.0,3791.3,3790.3,2.63828]
[1717764434713,2.63756,3791.4,3790.3,2.63828]
[1717764434923,2.63756,3791.4,3790.5,2.63813]
[1717764435482,2.63709,3792.1,3791.0,2.6378]
[1717764435715,0.75,3791.8,3791.0,2.6378]
[1717764435916,2.63709,3792.1,3791.0,2.6378]
[1717764436120,2.83318695,3792.5,3791.4,2.63754]
[1717764436416,2.83318695,3792.5,3791.7,2.63733]
[1717764436772,0.19639695,3792.5,3792.0,2.63711]
[1717764437674,0.19639695,3792.5,3791.1,4.3543]
[1717764437876,0.19639695,3792.5,3792.3,2.63689]
[1717764439117,2.63589,3793.8,3792.2,2.4444]
[1717764439410,2.63602,3793.6,3792.5,2.63677]
[1717764439813,2.63572,3794.1,3792.9,2.63649]
[1717764439988,2.63591,3793.8,3792.9,2.63649]
[1717764440320,2.538,3794.6,3792.4,2.63681]
[1717764440321,2.63603,3793.6,3792.4,2.63681]
[1717764440524,2.63603,3793.6,3792.7,2.63663]
[1717764440720,2.63577,3794.0,3792.7,2.63663]
[1717764441224,2.63577,3794.0,3793.0,2.63639]
[1717764441727,2.63577,3794.0,3792.6,2.63668]
[1717764441939,2.63598,3793.7,3792.6,2.63668]
[1717764442251,2.63598,3793.7,3792.2,2.4444]
[1717764442252,2.6364,3793.1,3792.2,2.63695]
[1717764442470,2.63661,3792.8,3791.8,2.63723]
[1717764442593,2.63683,3792.5,3791.5,2.4939]
[1717764443525,3.38651,3792.9,3791.6,2.63738]
[1717764443689,2.63668,3792.7,3791.6,2.63738]
[1717764443887,2.6369,3792.4,3791.5,2.4939]
[1717764444090,2.63659,3792.8,3791.5,5.13134]
[1717764444399,2.63659,3792.8,3791.8,2.63722]
[1717764444711,2.63659,3792.8,3791.8,3.150332]
[1717764445100,2.63633,3793.2,3791.8,0.513112]
[1717764445297,2.63603,3793.6,3792.4,2.63682]
[1717764445502,2.63603,3793.6,3792.6,2.63667]
[1717764447321,2.63579,3794.0,3792.9,2.63648]
[1717764447908,2.63597,3793.7,3792.9,2.63648]
[1717764448214,2.63617,3793.4,3792.5,2.3774]
[1717764448530,2.63592,3793.8,3792.5,2.61514]
[1717764449612,2.63565,3794.2,3792.9,2.63647]
[1717764449812,3.0,3794.1,3792.9,2.63647]
[1717764450210,2.63576,3794.0,3792.9,2.63647]
[1717764450535,2.6355,3794.4,3793.2,2.63628]
[1717764450836,2.6355,3794.4,3793.5,2.63607]
[1717764452196,2.63524,3794.8,3793.8,2.63586]
[1717764452974,2.63524,3794.8,3793.7,2.63592]
[1717764453181,3.38524,3794.8,3794.0,2.63568]
[1717764453378,0.22703247,3794.9,3793.6,2.4631]
[1717764453876,0.22703247,3794.9,3794.2,2.63557]
[1717764455175,2.63494,3795.2,3794.5,2.63537]
[1717764455381,5.63469,3795.6,3794.5,2.63537]
[1717764455682,2.63483,3795.3,3794.5,2.63537]
[1717764456287,2.6346,3795.7,3794.9,2.63506]
[1717764457247,2.63435,3796.0,3795.2,2.6349]
[1717764457648,2.63435,3796.0,3794.8,2.63512]
[1717764457849,2.63435,3796.0,3794.8,3.148082]
[1717764458760,2.6346,3795.7,3794.8,2.63512]
[1717764459081,2.63483,3795.4,3794.5,2.4945]
[1717764459299,2.63483,3795.4,3794.4,2.63546]
[1717764459649,2.63497,3795.2,3794.4,2.63546]
[1717764460399,2.63497,3795.2,3794.4,2.899006]
[1717764460400,2.63494,3795.2,3794.4,2.899006]
[1717764460615,2.63494,3795.2,3794.4,2.63546]
[1717764462683,2.63494,3795.2,3793.9,2.4256]
[1717764462684,2.63448,3795.9,3794.8,2.63512]
[1717764462913,2.63448,3795.9,3793.9,2.4256]
[1717764462914,3.38448,3795.9,3795.0,2.63498]
[1717764463050,3.38448,3795.9,3795.2,2.63489]
[1717764463051,2.63448,3795.9,3795.2,2.63489]
[1717764463497,2.63419,3796.3,3795.2,2.63489]
[1717764464094,2.63436,3796.0,3795.2,2.63489]
[1717764464297,2.63436,3796.0,3795.2,3.143459]
[1717764464505,2.63414,3796.4,3795.2,2.63489]
[1717764464717,2.63414,3796.4,3795.4,2.63471]